[Event "1st FIDE Olympiad DIS 2023"]
[Site "Belgrade"]
[Date "2023.01.30"]
[Round "1.11"]
[White "Wambalo Wong"]
[Black "Morariu, Ionel"]
[Result "0-1"]
[ECO "A46"]
[WhiteElo "1337"]
[BlackElo "1915"]
[Annotator "TA"]
[PlyCount "104"]
[EventDate "2023.01.30"]
[EventType "team-tourn"]
[EventCountry "SRB"]
[SourceTitle "playchess.com"]
[Source "ChessBase"]
[SourceQuality "1"]
[WhiteTeam "Kenya"]
[BlackTeam "Romania"]
[WhiteTeamCountry "KEN"]
[BlackTeamCountry "ROU"]
[TimeControl "40/5400+30:1800+30"]

{[%evp 9,104,-8,14,3,29,1,14,33,98,-23,-42,-35,1,-39,-35,-39,-27,-87,-43,-433,139,143,130,132,169,159,161,153,144,138,147,111,125,96,131,131,133,125,164,0,0,-8,0,0,0,-51,21,-34,-20,-328,-330,-433,-342,-335,-179,-186,-156,-185,-168,-163,-153,-192,-174,-168,-159,-176,-114,-167,-160,-281,-279,-279,-277,-276,-263,-354,-271,-346,-294,-454,-424,-429,-18,-119,-90,-371,-234,-222,-214,-536,-493,-572,-514,-543,-524,-821,-814]} 1. d4 {[%emt 0:03:51]} Nf6 {[%emt 0:00:17]} 2. Bf4 {[%emt 0:00:35]} d6 {[%emt 0:00:26][%cal Bd7d6,Bd6e5,Be5e4][%mdl 32]} 3. Nf3 {[%emt 0:01:02]} Nbd7 {[%emt 0:00:18]} 4. e3 {[%emt 0:00:54]} c6 {[%emt 0:00:19]} 5. Bd3 {[%emt 0:01:07]} Qc7 {[%emt 0:00:59]} 6. Nbd2 {[%emt 0:01:15][%cal Bb1d2,Bd2c4,Bc4e5][%mdl 32] A46: 1 d4 Nf6 2 Nf3 e6: Torre, London and Colle Systems.} e5 {[%emt 0:00:28]} 7. dxe5 {[%emt 0:02:13]} dxe5 {[%emt 0:00:10]} 8. Bg3 {[%emt 0:01:26] The position is equal.} Nh5 {[%emt 0:01:00] [#]} (8... g6 $14) 9. Be2 $146 {[%emt 0:06:24]} (9. Ng5 $1 $16 Nxg3 10. hxg3) ({Predecessor:} 9. Bh4 Nhf6 10. O-O Be7 11. h3 O-O 12. Bg3 Nd5 13. Nc4 f6 14. Nd4 N7b6 15. Qh5 {0-1 Hidegh,G (2130)-Imecs,L (2177) HUN-chT2 Maroczy 0203 2002 (2.9)}) 9... Nxg3 $11 {[%emt 0:00:51]} 10. hxg3 {[%emt 0:00:40]} Nf6 {[%emt 0:00:31]} 11. Nc4 {[%emt 0:05:36]} e4 $1 {[%emt 0:01:48]} 12. Nd4 {[%emt 0:01:29]} Bd7 {[%emt 0:01:19]} 13. Qd2 {[%emt 0:02:07]} (13. Nd2 $11) 13... Rd8 {[%emt 0:02:15]} 14. Qa5 $2 {[%emt 0:04:34][%mdl 8192]} (14. Qc3 $15) 14... b6 $2 {[%emt 0:00:33]} (14... Qxa5+ $19 15. Nxa5 Bb4+ 16. c3 Bxa5) 15. Qe5+ $16 {[%emt 0:02:34]} Qxe5 {[%emt 0:01:43]} 16. Nxe5 {[%emt 0:01:13][%cal Oe2c4]} Rc8 {[%emt 0:00:55]} 17. O-O-O {[%emt 0:01:39]} Bc5 {[%emt 0:01:18] [#]} 18. Ndxc6 $1 {[%emt 0:02:20][%mdl 512]} Bxc6 {[%emt 0:00:22]} 19. Nxc6 {[%emt 0:00:23]} O-O {[%emt 0:01:26] Black is weak on the light squares} (19... Rxc6 $2 20. Bb5 $18) 20. Ne5 {[%emt 0:05:38]} Rc7 {[%emt 0:06:45]} 21. Ng4 {[%emt 0:03:52]} Nd7 {[%emt 0:00:42][%cal Bf6d7,Bd7b8,Bb8c6][%mdl 32]} 22. Bb5 {[%emt 0:04:28]} Nb8 {[%emt 0:00:47]} 23. Bc4 {[%emt 0:04:33]} g6 {[%emt 0:01:44] [#]} 24. Bxf7+ $2 {[%emt 0:02:19]} Rcxf7 $11 {[%emt 0:01:16]} 25. Nh6+ {[%emt 0:00:41]} Kg7 {[%emt 0:00:17]} 26. Nxf7 {[%emt 0:00:53]} Rxf7 {[%emt 0:00:17]} 27. Rd2 {[%emt 0:03:22]} (27. Rhf1 $11) 27... Nc6 {[%emt 0:00:38]} (27... Nd7 $1 $15) 28. a3 {[%emt 0:00:15]} (28. Rh4 $1 $11) 28... Ne5 $15 {[%emt 0:01:24][%mdl 1024] Black has compensation.} 29. Kd1 $2 {[%emt 0:03:17][%mdl 8192]} (29. Rh4 $1 $11 {and White is okay.}) 29... Nc4 $1 $19 {[%emt 0:00:28][%csl LRb2,LRd2][%mdl 64] Deflection, Double Attack} 30. Rd5 {[%emt 0:06:51]} Nxb2+ {[%emt 0:03:05]} 31. Ke2 {[%emt 0:00:55]} Nc4 {[%emt 0:00:38]} (31... Bxa3 $2 {is the wrong capture.} 32. Rd4 $19) (31... Na4 $142 32. Rd8 Nc3+ 33. Kd2 Rc7) 32. a4 {[%emt 0:01:04]} Kf6 {[%emt 0:02:29]} 33. Rhd1 {[%emt 0:01:36]} Ke6 {[%emt 0:00:30] ...Nb2 would be deadly.} 34. Rd8 {[%emt 0:00:52]} Re7 {[%emt 0:02:14] Prevents Re8} 35. Rh1 {[%emt 0:01:02]} h5 {[%emt 0:01:30]} 36. Rh4 {[%emt 0:01:54]} Kf6 $1 {[%emt 0:04:31]} 37. Rf4+ {[%emt 0:06:15]} Ke5 {[%emt 0:01:43]} ({Better is} 37... Kg7 $1 $19 38. Rff8 Re6) 38. Rff8 {[%emt 0:04:08]} (38. g4 $17) 38... Nd6 {[%emt 0:04:31]} 39. f4+ {[%emt 0:01:39] [#]} (39. Rg8 $17 Kf6 40. c3) 39... Ke6 $1 {[%emt 0:00:34]} 40. Rg8 {[%emt 0:02:39]} Kf6 {[%emt 0:01:31]} 41. Rgf8+ {[%emt 0:03:14]} Nf7 {[%emt 0:00:58]} 42. Rd5 {[%emt 0:01:51]} Ke6 {[%emt 0:00:44]} 43. Rd1 {[%emt 0:00:50]} Nh6 {[%emt 0:01:04] Strongly threatening ...Nf5.} 44. Rfd8 {[%emt 0:00:34]} (44. Rdd8 $142) 44... Ng4 {[%emt 0:00:18]} 45. R1d5 {[%emt 0:09:10]} Bxe3 $2 {[%emt 0:00:42]} ({Not} 45... Nxe3 46. Rxc5 bxc5 47. Kxe3 $14) (45... Rc7 $19 46. Rg5 Be7 47. Rxg4 hxg4) 46. R5d6+ {[%emt 0:04:15]} (46. R8d6+ $1 $11 Kf7 47. Rg5) 46... Kf7 $17 {[%emt 0:00:44] ...Bc5 is the strong threat.} 47. R6d7 $2 {[%emt 0:00:29][%mdl 8192]} (47. R8d7 $17 {was the only defense.}) 47... Bf2 {[%emt 0:00:49] And now ...a5 would win.} 48. Rxe7+ {[%emt 0:00:46]} Kxe7 {[%emt 0:00:09]} 49. Ra8 {[%emt 0:01:55] [#]} (49. Rg8 {was the crucial defense.}) 49... a5 $1 $19 {[%emt 0:00:23] Black is clearly winning.} (49... Bxg3 50. Rxa7+ Kd6 51. Rb7 $15) 50. Rb8 {[%emt 0:01:05]} Bc5 {[%emt 0:00:36]} ({Weaker is} 50... Bxg3 51. Rb7+ Ke6 52. Rxb6+ Kd5 53. Rb5+ Kc4 54. Rxa5 $15) 51. Rg8 {[%emt 0:01:02]} Kf7 {[%emt 0:00:23]} 52. Rd8 {[%emt 0:00:34]} Ne3 {[%emt 0:00:43] Weighted Error Value: White=0.81/Black=0.43} 0-1

[Event "1st FIDE Olympiad DIS 2023"]
[Site "Belgrade"]
[Date "2023.01.30"]
[Round "1.12"]
[White "Vuljanic, Ana"]
[Black "Petrovic, Vladan"]
[Result "0-1"]
[ECO "D52"]
[WhiteElo "1613"]
[BlackElo "1818"]
[Annotator "NA RC COMBH"]
[PlyCount "107"]
[EventDate "2023.01.30"]
[EventType "team-tourn"]
[EventCountry "SRB"]
[SourceTitle "playchess.com"]
[Source "ChessBase"]
[SourceQuality "1"]
[WhiteTeam "Croatia"]
[BlackTeam "Serbia"]
[WhiteTeamCountry "CRO"]
[BlackTeamCountry "SRB"]
[TimeControl "40/5400+30:1800+30"]

{[%evp 8,101,26,32767,32767,32767,32767,32767,32767,32767,32767,32767,32767,32767,32767,32767,32767,-51,45,32767,32767,31,32,41,56,46,62,32767,60,53,67,32767,60,32767,32767,48,32767,62,32767,55,52,32767,32767,32767,32767,-65,32767,32767,32767,32767,-59,-65,-29,32767,-91,32767,32767,32767,32767,32767,-208,-203,-205,32767,-236,-249,32767,32767,32767,-302,-260,32767,32767,32767,32767,-364,-409,-359,-271,-271,-350,-439,-381,-395,-381,-380,-433,32767,-385,-477,-437,-337,-548,-725,-772,-534]} 1. d4 {[%emt 2:20:28]} d5 {[%emt 0:00:13]} 2. c4 {[%emt 0:00:00]} e6 {[%emt 0:00:07]} 3. Nc3 {[%emt 0:00:00]} Nf6 {[%emt 0:00:15]} 4. Bg5 {[%emt 0:00:00]} Nbd7 {[%emt 0:00:38]} 5. e3 {[%emt 0:00:00]} c6 {[%emt 0:00:08]} 6. Nf3 {[%emt 0:00:00]} Qa5 {[%emt 0:00:40]} 7. Bxf6 {[%emt 0:00:00]} Nxf6 {[%emt 0:00:23]} 8. Nd2 {[%emt 0:00:00]} Bd6 {[%emt 0:06:42]} 9. Qc2 {[%emt 0:00:00]} O-O {[%emt 0:01:11]} 10. Bd3 {[%emt 0:00:00]} h6 {[%emt 0:04:02]} 11. h3 {[%emt 0:00:00]} Re8 {[%emt 0:01:19]} 12. f4 {[%emt 0:00:00]} (12. c5 $11 Be7 13. f4) 12... dxc4 {[%emt 0:16:31]} ({Better is} 12... c5 $1 $15) 13. Nxc4 {[%emt 0:00:00]} Qd8 {[%emt 0:04:31]} 14. Nxd6 {[%emt 0:00:00]} Qxd6 {[%emt 0:00:09]} 15. Ne4 {[%emt 0:00:00]} Nxe4 {[%emt 0:01:45]} 16. Bxe4 {[%emt 0:00:00]} Qb4+ {[%emt 0:04:05]} 17. Qd2 {[%emt 0:00:00]} Qb6 {[%emt 0:03:59]} 18. Rc1 {[%emt 0:00:00]} Rd8 {[%emt 0:03:39]} 19. Qc3 {[%emt 0:00:00]} Bd7 {[%emt 0:04:21]} 20. O-O {[%emt 0:00:00]} Be8 {[%emt 0:04:06]} 21. Bb1 {[%emt 0:00:00]} Rd5 {[%emt 0:04:30]} 22. a3 {[%emt 0:00:00]} a5 {[%emt 0:03:50]} 23. Bd3 {[%emt 0:00:00]} Qd8 {[%emt 0:05:11]} 24. Kh2 {[%emt 0:00:00]} c5 {[%emt 0:04:48]} 25. Be4 {[%emt 0:00:00]} cxd4 {[%emt 0:00:50]} 26. exd4 {[%emt 0:00:00]} Rxd4 {[%emt 0:02:56]} 27. Bxb7 {[%emt 0:00:00]} Rb8 {[%emt 0:00:48]} 28. Qc7 {[%emt 0:00:00]} Rd2 {[%emt 0:04:09]} 29. Qxd8 {[%emt 0:00:00]} Rbxd8 {[%emt 0:00:25]} 30. b4 {[%emt 0:00:00]} axb4 {[%emt 0:00:26]} 31. axb4 {[%emt 0:00:00]} Rb2 {[%emt 0:02:11]} 32. Rc7 {[%emt 0:00:00]} Rxb4 {[%emt 0:00:00]} 33. Rfc1 {[%emt 0:00:00]} Rxf4 {[%emt 0:00:25]} 34. R1c2 {[%emt 0:00:00]} Rfd4 {[%emt 0:01:42]} 35. Rc8 {[%emt 0:00:00]} Kf8 {[%emt 0:02:10]} 36. Ba6 {[%emt 0:00:00]} Rxc8 {[%emt 0:01:43]} 37. Rxc8 {[%emt 0:00:00]} Ke7 {[%emt 0:00:30]} 38. Bb7 {[%emt 0:00:00]} Bb5 {[%emt 0:02:48]} 39. Bf3 {[%emt 0:00:00]} Bc4 {[%emt 0:01:42]} 40. Rc7+ {[%emt 0:00:00]} Kf6 {[%emt 0:01:16]} 41. Bh5 {[%emt 0:00:00]} g6 {[%emt 0:01:46]} 42. Bf3 {[%emt 0:00:00]} Bd3 {[%emt 0:01:24]} 43. Kg1 {[%emt 0:00:00]} Be4 {[%emt 0:00:39]} 44. Be2 {[%emt 0:00:00]} Rd2 {[%emt 0:00:31]} 45. Bf1 {[%emt 0:00:00]} Bd5 {[%emt 0:01:23]} 46. Ra7 {[%emt 0:00:00]} h5 {[%emt 0:01:07]} 47. Rd7 {[%emt 0:00:00]} g5 {[%emt 0:01:01]} 48. Rd8 {[%emt 0:00:00]} g4 {[%emt 0:05:31]} 49. hxg4 $19 {[%emt 0:00:00]} hxg4 {[%emt 0:00:08]} 50. Kh2 {[%emt 0:00:00]} Ke5 {[%emt 0:00:46]} 51. Kg3 {[%emt 0:00:03]} f5 {[%emt 0:00:12]} 52. Rf8 {[%emt 0:00:52]} Rb2 {[%emt 0:00:58]} 53. Rf7 {[%emt 0:01:33]} Rb3+ {[%emt 0:00:41]} 54. Kf2 {[%emt 0:00:57]} 0-1

[Event "1st FIDE Olympiad DIS 2023"]
[Site "Belgrade"]
[Date "2023.01.30"]
[Round "1.13"]
[White "Jankunas, Tomas"]
[Black "Gora, Tapiwa"]
[Result "0-1"]
[ECO "B01"]
[WhiteElo "2127"]
[BlackElo "1959"]
[Annotator "TA"]
[PlyCount "84"]
[EventDate "2023.01.30"]
[EventType "team-tourn"]
[EventCountry "SRB"]
[SourceTitle "playchess.com"]
[Source "ChessBase"]
[SourceQuality "1"]
[WhiteTeam "ICCD"]
[BlackTeam "Zimbabwe"]
[WhiteTeamCountry "LTU"]
[BlackTeamCountry "ZIM"]
[TimeControl "40/5400+30:1800+30"]

{[%evp 11,84,18,39,0,69,54,64,59,57,47,113,86,119,109,200,194,198,201,187,202,189,194,190,120,133,129,126,83,114,123,151,110,118,113,118,114,142,108,96,76,60,64,74,80,82,89,88,93,114,30,143,88,71,57,192,111,115,108,177,69,114,96,109,78,285,7,0,0,0,0,0,-52,0,-701,-699]} 1. e4 {[%emt 0:00:11]} d5 {[%emt 0:00:08]} 2. exd5 {[%emt 0:02:26]} Nf6 {[%emt 0:00:12]} 3. d4 {[%emt 0:02:28]} Bg4 {[%emt 0:00:48]} 4. Nf3 {[%emt 0:01:34]} Qxd5 {[%emt 0:00:35]} 5. Be2 {[%emt 0:01:22]} Nc6 {[%emt 0:00:15]} 6. c4 {[%emt 0:08:10]} Qf5 {[%emt 0:00:10]} 7. Be3 {[%emt 0:04:12] B01: Scandinavian Defence.} e6 {[%emt 0:08:27]} (7... e5 $11 8. dxe5 Bb4+ 9. Nbd2 Bxf3 10. exf6 (10. Bxf3 Nxe5 11. O-O Bxd2 $17) 10... Bxe2 11. fxg7 O-O-O 12. gxh8=R (12. gxh8=Q Bxd1 $11) (12. Qxe2 $2 Rhe8 $19) 12... Bxd1 13. Rxd8+ Nxd8 14. Rxd1 Bxd2+ {[%mdl 64] Remove Defender} 15. Rxd2 (15. Kxd2 Qa5+ 16. Ke2 Qxa2 $17) 15... Qb1+ 16. Rd1 Qxa2) 8. Nc3 {[%emt 0:07:17]} Be7 {[%emt 0:12:55] [#]} 9. h3 $146 {[%emt 0:02:56] White is slightly better.} ({Predecessor:} 9. Qb3 Nb4 10. O-O-O O-O 11. a3 Nc6 12. Qxb7 Na5 13. Qb5 Rab8 14. Qxf5 Bxf5 15. b4 {1-0 Juhnke,J (2286)-Heinemann,E (2220) Oberliga Nord W 0506 2005 (5.5)}) 9... Bxf3 {[%emt 0:00:21]} 10. Bxf3 {[%emt 0:00:10] g4 would be deadly.} Nb4 {[%emt 0:00:08]} (10... O-O $14) 11. O-O {[%emt 0:02:45]} c6 {[%emt 0:05:16]} 12. Rc1 {[%emt 0:12:38] Prevents Nc2.} Nd3 {[%emt 0:10:44] [#]} (12... Rd8 $16) 13. Qb3 $1 $18 {[%emt 0:04:32]} Nxc1 {[%emt 0:14:43]} (13... O-O 14. Rcd1) 14. Qxb7 {[%emt 0:00:05]} O-O {[%emt 0:00:02]} 15. Rxc1 {[%emt 0:02:21]} (15. Qxe7 Nd3 $14) 15... Bd6 {[%emt 0:01:17]} 16. Qxc6 {[%emt 0:01:41]} (16. Bxc6 Rab8 17. Qxa7 Rxb2 $11) 16... Rad8 {[%emt 0:00:55]} 17. Ne4 {[%emt 0:07:27]} (17. g4 $18 Qg6 18. Bd1) 17... Nxe4 $16 {[%emt 0:09:48]} 18. Bxe4 {[%emt 0:00:03]} Qa5 {[%emt 0:00:16]} 19. Bb1 {[%emt 0:00:24]} Qb4 {[%emt 0:03:24]} 20. b3 {[%emt 0:00:45]} Rfe8 {[%emt 0:00:43]} 21. Qf3 {[%emt 0:03:56]} Be7 {[%emt 0:05:10]} 22. Be4 {[%emt 0:03:42]} Bf6 {[%emt 0:04:23][%cal Be7f6,Bf6e5,Be5d6][%mdl 32]} 23. Rd1 {[%emt 0:05:58]} Qc3 {[%emt 0:03:45]} 24. Bc6 {[%emt 0:04:55]} Re7 {[%emt 0:01:09]} 25. d5 {[%emt 0:01:06]} exd5 {[%emt 0:00:16]} 26. cxd5 {[%emt 0:00:08]} Be5 {[%emt 0:02:06]} 27. g3 {[%emt 0:04:33]} Bd6 {[%emt 0:00:28]} 28. Kg2 {[%emt 0:00:08]} Qa5 {[%emt 0:02:31]} 29. a4 {[%emt 0:01:49]} Qb4 {[%emt 0:03:47]} 30. Bd4 {[%emt 0:01:54]} (30. Bg5 $16) 30... Kf8 {[%emt 0:00:58] [#]} (30... Be5 $11 {keeps the balance.} 31. Bxe5 Rxe5) 31. Qg4 {[%emt 0:01:05]} (31. Qd3 $142 $1 {[%cal Rd3h7]} Kg8 32. Bb5) 31... f6 {[%emt 0:00:06]} 32. Rd3 {[%emt 0:00:36]} Qe1 {[%emt 0:01:54]} (32... Be5 $14) 33. Be3 {[%emt 0:00:53] A strong pair of Bishops.} (33. Rd1 $6 Qb4 $16) (33. Qf5 $18) 33... Qb1 {[%emt 0:00:25]} 34. Qc4 {[%emt 0:03:32]} Kf7 {[%emt 0:01:59]} (34... Kg8 $16) 35. a5 {[%emt 0:00:12]} (35. Bd2 $18) 35... Qe1 {[%emt 0:00:49]} 36. a6 {[%emt 0:00:27]} Rb8 {[%emt 0:01:02]} 37. Bb7 {[%emt 0:00:36]} Rc7 $2 {[%emt 0:00:20]} (37... Rbe8 $16 {is a better defense.}) 38. Qe4 $2 {[%emt 0:00:13]} (38. Qg4 $18 {aiming for Qe6+.} Re8 39. Rd1 (39. Bxa7 $2 Rc1 $19) 39... Rxe3 40. Rxe1 Rxe1 41. b4) 38... Re8 $11 {[%emt 0:00:43]} 39. Qxh7 {[%emt 0:00:49]} Rc2 $40 {[%emt 0:02:49][%mdl 128] Black has some attack. Dancing on a razor blade.} 40. Qh5+ $1 {[%emt 0:01:41]} (40. Bxa7 Rc1 41. Qh5+ Kg8 $19) 40... Kf8 {[%emt 0:00:14]} 41. Qf3 {[%emt 0:31:59]} (41. Bxa7 $2 Rc1 42. Qh8+ Kf7 43. Qh5+ Kg8 $19) (41. Qh8+ $1 $11 Kf7 42. Qh5+ Kf8 43. Qh8+ (43. Bxa7 $2 {too greedy.} Rc1 $19) 43... Kf7 44. Qh5+) 41... Re5 {[%emt 0:31:10]} (41... Rb2 $1 $15 42. Bh6 Rxf2+ 43. Qxf2 Re2 {[%mdl 64] Pin}) 42. Rd1 $2 {[%emt 0:05:31][%mdl 8192]} (42. Bxa7 $2 {is the wrong capture.} Rc1 $19) (42. h4 $11 Kg8 43. Bc6 (43. Bxa7 $2 {loses.} Rc1 $19)) 42... Qxe3 {[%emt 0:00:00] Artfully played by Gora.   Weighted Error Value: White=0.40/Black=0.31} 0-1

[Event "1st FIDE Olympiad DIS 2023"]
[Site "Belgrade"]
[Date "2023.01.30"]
[Round "1.13"]
[White "Zaynidinov, Sirojiddin"]
[Black "Severino, Sander"]
[Result "0-1"]
[ECO "B15"]
[WhiteElo "2042"]
[BlackElo "2364"]
[Annotator "TA"]
[PlyCount "90"]
[EventDate "2023.01.30"]
[EventType "team-tourn"]
[EventCountry "SRB"]
[SourceTitle "playchess.com"]
[Source "ChessBase"]
[SourceQuality "1"]
[WhiteTeam "Uzbekistan"]
[BlackTeam "Philippines"]
[WhiteTeamCountry "UZB"]
[BlackTeamCountry "PHI"]
[TimeControl "40/5400+30:1800+30"]

{[%evp 11,90,11,16,0,0,-23,-17,-14,-16,-47,-40,-52,-31,-36,-28,-39,-31,-32,-19,-14,-8,-20,-13,-19,-14,-29,0,-12,0,-42,-17,-21,0,0,0,-7,0,-11,0,0,0,-39,0,-27,-27,-27,-33,-79,-79,-79,-66,-70,-66,-93,-83,-81,-81,-93,-87,-87,-86,-88,-84,-125,-125,-125,-125,-142,-135,-173,-129,-217,-215,-327,-302,-345,-337,-427,-423,-762,-739]} 1. e4 {[%emt 0:00:40]} c6 {[%emt 0:01:13]} 2. d4 {[%emt 0:00:27]} d5 {[%emt 0:00:48]} 3. Nc3 {[%emt 0:00:12]} dxe4 {[%emt 0:02:04]} 4. Nxe4 {[%emt 0:00:11]} Nf6 {[%emt 0:00:46]} 5. Nxf6+ {[%emt 0:03:36]} exf6 {[%emt 0:00:10]} 6. Nf3 {[%emt 0:02:42]} Bd6 {[%emt 0:01:06]} 7. Qe2+ {[%emt 0:10:59] B15: Caro-Kann: 3 Nc3: 3...g6 and 3...dxe4 4 Nxe4 Nf6 5 Nxf6+ exf6.} Be6 {[%emt 0:00:11]} 8. Be3 {[%emt 0:00:40]} O-O {[%emt 0:00:15]} 9. Qd2 {[%emt 0:02:10] [#] The position is equal.} Nd7 $146 {[%emt 0:02:07][%cal Bb8d7,Bd7b6,Bb6d5,Bd5e3][%mdl 32]} ({Predecessor:} 9... Re8 10. Be2 Nd7 11. O-O Nf8 12. c4 Rc8 13. Rac1 Bb8 14. Rfd1 Ng6 15. Qb4 b6 {0-1 Isik,K (1820)-Sahin,F (1555) TUR Cup Antalya 2019 (8)}) 10. Be2 {[%emt 0:00:59]} Nb6 {[%emt 0:00:48]} 11. O-O {[%emt 0:01:44]} Nd5 {[%emt 0:01:40]} 12. c4 {[%emt 0:02:00]} Nxe3 {[%emt 0:00:10]} 13. fxe3 {[%emt 0:01:31]} Re8 {[%emt 0:01:43]} 14. Bd3 {[%emt 0:08:49]} c5 {[%emt 0:05:02]} 15. Rae1 {[%emt 0:22:59]} Rc8 {[%emt 0:01:55] White should prevent ...cxd4.} 16. b3 {[%emt 0:01:45]} Qc7 {[%emt 0:01:31]} 17. Kh1 {[%emt 0:02:46]} Rcd8 {[%emt 0:02:16]} 18. Qf2 {[%emt 0:03:27]} h6 {[%emt 0:04:41]} 19. Qh4 {[%emt 0:06:36]} (19. d5 $5 {[%cal Rd5e6]} Bc8 20. Rg1 $11) 19... Bc8 {[%emt 0:03:29]} 20. Bb1 {[%emt 0:02:37]} Qa5 {[%emt 0:02:41]} 21. Qh5 {[%emt 0:03:25]} b6 {[%emt 0:01:08]} 22. d5 {[%emt 0:08:12]} Qc3 {[%emt 0:02:29]} 23. e4 $1 {[%emt 0:00:27] White is weak on the dark squares} Re7 {[%emt 0:00:52]} 24. Nh4 {[%emt 0:02:07]} Re5 {[%emt 0:00:54][%cal Be7e5,Be5h5,Bh5h3][%mdl 32]} (24... Rde8 {with more complications.} 25. Rd1 Qb2 26. Qf3 Qe5) 25. Qf3 {[%emt 0:00:49]} Qxf3 {[%emt 0:08:13]} 26. Rxf3 {[%emt 0:01:38]} Rde8 {[%emt 0:02:18][%cal Of6f5]} 27. Ref1 {[%emt 0:00:57]} Bg4 {[%emt 0:04:25]} 28. R3f2 {[%emt 0:01:17]} Rh5 $36 {[%emt 0:05:22][%mdl 2048] Black has good play.} 29. Nf3 {[%emt 0:01:52]} (29. g3 $1 $15 {is superior.}) 29... Bxf3 $17 {[%emt 0:00:13]} 30. gxf3 {[%emt 0:00:09]} Bf4 {[%emt 0:00:06]} 31. Bd3 {[%emt 0:02:13]} Kf8 {[%emt 0:00:48]} 32. Re2 {[%emt 0:01:20]} Rh3 {[%emt 0:00:33]} 33. Rff2 {[%emt 0:01:02]} Re5 {[%emt 0:00:32] Black has more active pieces.} 34. Rb2 {[%emt 0:00:21]} Be3 {[%emt 0:06:52]} 35. Bf1 {[%emt 0:00:18]} Rh4 {[%emt 0:00:08]} 36. Rg2 {[%emt 0:01:26]} Bd4 {[%emt 0:00:44]} 37. Rbe2 {[%emt 0:00:47]} Rf4 {[%emt 0:00:58]} 38. Rg3 {[%emt 0:00:21]} h5 {[%emt 0:00:44]} 39. Kg2 {[%emt 0:02:40][%cal Og3g7]} g6 {[%emt 0:00:37]} 40. a3 {[%emt 0:00:26]} Ke7 {[%emt 0:00:43]} 41. b4 {[%emt 0:30:39]} (41. Rd2 $17) 41... Kd6 $19 {[%emt 0:31:12]} 42. b5 {[%emt 0:01:03]} (42. Rd2 $142) 42... f5 {[%emt 0:06:52]} 43. exf5 {[%emt 0:00:00]} Rexf5 {[%emt 0:00:00] [#] White must now prevent ...h4.} ({And not} 43... Rfxf5 44. Rxe5 Bxe5 45. Bd3 $19) 44. Re8 {[%emt 0:00:00]} h4 {[%emt 0:00:00]} 45. Rh3 {[%emt 0:00:00]} (45. Bd3 $142 hxg3 46. Bxf5 Rxf5 47. hxg3) 45... Rg5+ {[%emt 0:00:00] Weighted Error Value: White=0.32/Black=0.07 (flawless)} 0-1

[Event "1st FIDE Olympiad DIS 2023"]
[Site "Belgrade"]
[Date "2023.01.30"]
[Round "1.14"]
[White "Lopez, Henry"]
[Black "Mamarajabov, Sardorbek"]
[Result "1-0"]
[ECO "D44"]
[WhiteElo "2102"]
[BlackElo "1712"]
[Annotator "TA"]
[PlyCount "49"]
[EventDate "2023.01.30"]
[EventType "team-tourn"]
[EventCountry "SRB"]
[SourceTitle "playchess.com"]
[Source "ChessBase"]
[SourceQuality "1"]
[WhiteTeam "Philippines"]
[BlackTeam "Uzbekistan"]
[WhiteTeamCountry "PHI"]
[BlackTeamCountry "UZB"]
[TimeControl "40/5400+30:1800+30"]

{[%evp 34,49,44,63,477,482,475,475,466,452,462,452,505,507,896,837,2973,2659]} 1. d4 {[%emt 0:00:06]} d5 {[%emt 0:00:40]} 2. Nf3 {[%emt 0:00:18]} Nf6 {[%emt 0:00:55]} 3. c4 {[%emt 0:00:33]} c6 {[%emt 0:00:26]} 4. Nc3 {[%emt 0:00:25]} e6 {[%emt 0:00:52]} 5. Bg5 {[%emt 0:01:06]} dxc4 {[%emt 0:00:42]} 6. e4 {[%emt 0:00:27][%cal Be2e4,Be4e5][%mdl 32]} b5 {[%emt 0:01:07]} 7. e5 {[%emt 0:01:37]} h6 {[%emt 0:00:12]} 8. Bh4 {[%emt 0:00:15]} g5 {[%emt 0:00:17]} 9. Nxg5 {[%emt 0:00:35]} hxg5 {[%emt 0:00:13]} 10. Bxg5 {[%emt 0:00:11]} Nbd7 {[%emt 0:00:23]} 11. g3 {[%emt 0:00:22]} Bb7 {[%emt 0:01:01]} 12. Bg2 {[%emt 0:00:17]} Qb6 {[%emt 0:00:12]} 13. exf6 {[%emt 0:00:15]} O-O-O {[%emt 0:02:05]} 14. O-O {[%emt 0:01:07]} c5 {[%emt 0:01:06]} 15. d5 {[%emt 0:01:18]} b4 {[%emt 0:00:11]} 16. Rb1 {[%emt 0:03:29]} Qa6 {[%emt 0:09:34]} 17. dxe6 {[%emt 0:05:17]} Bxg2 {[%emt 0:06:24]} 18. e7 $1 {[%emt 0:01:28] The board is on fire.} (18. exd7+ Rxd7 19. Qa4 Qxa4 20. Nxa4 Bc6 $19) 18... Qc6 {[%emt 0:12:36][%mdl 8192] D44: Semi-Slav: Botvinnik System.} (18... bxc3 $2 19. exd8=Q+ (19. exd8=B $2 Qe6 $19) 19... Kxd8 20. Kxg2 $18) ({Black should play} 18... Bxf1 $14 19. Kxf1 Bxe7 20. fxe7 Rdg8) 19. Nb5 $18 {[%emt 0:04:47][%mdl 64] [#] Promotion. White is clearly winning.} ({Not} 19. exd8=Q+ Kxd8 20. Re1 bxc3 21. bxc3 Bd6 $17) (19. exd8=B $2 Bxf1 20. Qd5 (20. Qxf1 $2 Ne5 $19) 20... Qxd5 21. Nxd5 Bd3 $19) 19... Qxb5 {[%emt 0:03:50]} 20. exd8=Q+ {[%emt 0:00:26]} (20. exd8=N Bxf1 21. Nxf7 Rh7 $14) ({Don't play} 20. exd8=R+ Kxd8 21. Kxg2 Qc6+ 22. f3 Bd6 $18) 20... Kxd8 {[%emt 0:00:10]} 21. Kxg2 {[%emt 0:00:15] Qd5 is the strong threat.} Qc6+ {[%emt 0:00:10]} 22. f3 {[%emt 0:00:21]} Bd6 {[%emt 0:16:49]} 23. Qe2 {[%emt 0:06:42] [#]} Qd5 $146 {[%emt 0:15:44]} (23... a5 $142 24. Qxc4 Ne5) ({Predecessor:} 23... Rg8 24. h4 Ne5 25. Rbd1 Nd3 26. b3 Re8 27. Qd2 Qd5 28. bxc4 Qe5 29. f4 Qe4+ {1-0 Fernandez,D (2317)-Santos,M (2305) Sao Paulo Communic 6th 2004 (3)}) 24. Rbd1 {[%emt 0:05:18][%mdl 64] [#] Deflection} Qf5 {[%emt 0:04:27]} 25. Rxd6 {[%emt 0:00:24] Black got outplayed after the opening. Beautiful play by Lopez!   Weighted Error Value: White=0.00 (flawless) /Black=1.33} 1-0